fUSD/lending_fUSD_20250814
["ID","MTS","AMOUNT","RATE_DAILY","PERIOD"]
[379228563,1755199839378,-1488.07947113,0.00025835,2]
[379228564,1755199839387,-9146.9230421,0.00025838,2]
[379228565,1755199839396,-150.0,0.00025849,4]
[379228566,1755199839406,-150.0,0.00025849,4]
[379228567,1755199839415,-150.0,0.00025849,4]
[379228568,1755199839425,-5513.0,0.000259,5]
[379228570,1755199839435,-150.0,0.00025916,4]
[379228571,1755199839444,-4433.65,0.00026,2]
[379228572,1755199839453,-234.93160119,0.00026,2]
[379228573,1755199839463,-403.91,0.00026,7]
[379228574,1755199839471,-150.0,0.00026001,4]
[379228575,1755199839481,-150.0,0.00026001,4]
[379228576,1755199839490,-150.0,0.00026001,4]
[379228577,1755199839499,-150.0,0.00026001,4]
[379228578,1755199839508,-150.0,0.00026001,4]
[379228579,1755199839517,-300.0,0.00026026,2]
[379228580,1755199839526,-3000.0,0.00026026,2]
[379228581,1755199839535,-304.0,0.00026026,2]
[379228582,1755199839545,-1500.0,0.00026026,2]
[379228583,1755199839555,-600.0,0.00026026,2]
[379228584,1755199839564,-160.0,0.00026026,2]
[379228585,1755199839573,-151.0,0.00026026,2]
[379228586,1755199839582,-340.0,0.00026026,2]
[379228587,1755199839592,-455.86758873,0.00026026,2]
[379228588,1755199839602,-250.0,0.00026026,2]
[379228589,1755199839611,-500.0,0.00026026,2]
[379228590,1755199839620,-173.90267423,0.00026026,2]
[379228591,1755199839630,-500.0,0.00026026,2]
[379228592,1755199839639,-500.0,0.00026026,2]
[379228593,1755199839648,-579.59505164,0.00026026,2]
[379228594,1755199839657,-309.98419327,0.00026026,2]
[379228595,1755199839667,-1012.74253208,0.00026026,2]
[379228596,1755199839676,-277.35679052,0.00026026,2]
[379228597,1755199839686,-1500.0,0.00026026,2]
[379228598,1755199839695,-151.0,0.00026026,2]
[379228599,1755199839705,-714.42139927,0.00026026,2]
[379228600,1755199839715,-200.0,0.00026026,2]
[379228601,1755199839724,-200.0,0.00026026,2]
[379228602,1755199839733,-200.0,0.00026026,2]
[379228603,1755199839743,-200.0,0.00026026,2]
[379228604,1755199839752,-200.0,0.00026026,2]
[379228605,1755199839762,-200.0,0.00026026,2]
[379228606,1755199839773,-200.0,0.00026026,2]
[379228607,1755199839782,-200.0,0.00026026,2]
[379228608,1755199839792,-200.0,0.00026026,2]
[379228609,1755199839801,-200.0,0.00026026,2]
[379228610,1755199839812,-200.0,0.00026026,2]
[379228611,1755199839821,-200.0,0.00026026,2]
[379228612,1755199839830,-200.0,0.00026026,2]
[379228613,1755199839839,-200.0,0.00026026,2]
[379228614,1755199839848,-200.0,0.00026026,2]
[379228615,1755199839858,-200.0,0.00026026,2]
[379228616,1755199839867,-200.0,0.00026026,2]
[379228617,1755199839878,-200.0,0.00026026,2]
[379228618,1755199839888,-200.0,0.00026026,2]
[379228619,1755199839898,-200.0,0.00026026,2]
[379228620,1755199839908,-1488.07947113,0.00026043,2]
[379228621,1755199839918,-1094.0,0.0002606,2]
[379228622,1755199839930,-150.0,0.00026087,4]
[379228623,1755199839941,-1094.4,0.00026138,2]
[379228624,1755199839951,-150.0,0.00026141,2]
[379228625,1755199839960,-150.0,0.00026153,4]
[379228626,1755199839970,-150.0,0.00026153,4]
[379228627,1755199839979,-150.0,0.00026153,4]
[379228628,1755199839990,-150.0,0.00026172,4]
[379228629,1755199840001,-703.19,0.00026189,30]
[379228630,1755199840011,-150.0,0.00026197,4]
[379228631,1755199840020,-307.39,0.00026225,2]
[379228633,1755199840029,-159.54,0.00026225,2]
[379228635,1755199840039,-1488.07947113,0.00026251,2]
[379228636,1755199840048,-150.0,0.00026258,4]
[379228637,1755199840058,-5064.90584438,0.00026258,2]
[379228638,1755199840067,-150.0,0.00026275,4]
[379228639,1755199840076,-150.0,0.00026275,4]
[379228640,1755199840085,-150.0,0.00026275,4]
[379228641,1755199840097,-150.0,0.00026305,4]
[379228642,1755199840108,-250.0,0.0002634,2]
[379228643,1755199840120,-150.0,0.00026343,4]
[379228644,1755199840129,-4000.0,0.00026402,4]
[379228646,1755199840139,-150.0,0.00026429,4]
[379228648,1755199840148,-150.0,0.00026458,4]
[379228649,1755199840157,-150.0,0.00026458,4]
[379228650,1755199840167,-150.0,0.00026458,4]
[379228651,1755199840176,-150.0,0.00026458,4]
[379228653,1755199840186,-150.0,0.00026458,4]
[379228654,1755199840196,-1488.07947113,0.0002646,2]
[379228655,1755199840205,-1136.10695674,0.00026474,2]
[379228656,1755199840215,-300.0,0.00026478,2]
[379228657,1755199840225,-152.25694364,0.00026486,2]
[379228658,1755199840234,-42863.14203852,0.000265,2]
[379228659,1755199840244,-1429.97432674,0.000265,2]
[379228660,1755199840257,-150.0,0.00026515,4]
[379228661,1755199840272,-150.0,0.00026549,4]
[379228662,1755199840281,-150.0,0.00026549,4]
[379228663,1755199840290,-268.36,0.00026555,2]
[379228664,1755199840300,-9146.9230421,0.00026565,2]
[379228665,1755199840313,-600.0,0.00026574,2]
[379228666,1755199840322,-151.0,0.00026574,2]
[379228667,1755199840332,-250.0,0.00026586,2]
[379228668,1755199840341,-150.0,0.00026588,4]
[379228669,1755199840350,-9999.99,0.00026591,2]
[379228670,1755199840359,-150.99,0.00026591,2]
[379228671,1755199840368,-20663.49,0.00026591,10]
[379228672,1755199840378,-1315.19,0.00026591,2]
[379228673,1755199840387,-150.99,0.00026591,2]
[379228674,1755199840396,-341.53,0.00026591,2]
[379228675,1755199840405,-289.37,0.00026591,2]
[379228676,1755199840415,-294.26,0.00026591,2]
[379228677,1755199840424,-5714.92,0.00026591,2]
[379228678,1755199840434,-150.0,0.000266,4]
[379228679,1755199840443,-150.0,0.0002661,4]
[379228680,1755199840452,-160.0,0.0002661,2]
[379228681,1755199840461,-942.58708911,0.00026623,2]
[379228682,1755199840471,-168.0,0.00026662,2]
[379228683,1755199840480,-1488.07947113,0.00026668,2]
[379228684,1755199840489,-228.27,0.00026681,2]
[379228685,1755199840499,-150.0,0.00026686,4]
[379228686,1755199840508,-4000.0,0.00026761,4]
[379228687,1755199840517,-150.0,0.00026762,4]
[379228688,1755199840526,-150.0,0.00026762,4]
[379228689,1755199840535,-150.0,0.00026762,4]
[379228690,1755199840544,-150.0,0.00026771,4]
[379228691,1755199840555,-5064.90584438,0.00026778,2]
[379228692,1755199840565,-155.44216371,0.00026784,2]
[379228693,1755199840575,-70214.66229091,0.00026786,2]
[379228694,1755199840584,-224.63016943,0.00026788,2]
[379228695,1755199840595,-153.03548462,0.0002679,2]
[379228696,1755199840604,-11636.29713481,0.00026796,2]
[379228697,1755199840615,-224.63016943,0.00026797,2]
[379228698,1755199840624,-150.45967905,0.00026803,2]
[379228699,1755199840634,-5265.23589699,0.00026804,2]
[379228700,1755199840643,-824.03289256,0.00026805,2]
[379228701,1755199840653,-1318.65639065,0.00026805,2]
[379228702,1755199840663,-5000.0,0.00026808,4]
[379228703,1755199840672,-18620.80041592,0.00026812,2]
[379228704,1755199840682,-155.44216371,0.00026814,2]
[379228705,1755199840691,-5265.23589699,0.00026815,2]
[379228706,1755199840701,-155.44216371,0.00026817,2]
[379228707,1755199840710,-338.72759032,0.0002682,2]
[379228708,1755199840719,-11636.29713481,0.00026821,2]
[379228709,1755199840728,-150.0,0.00026822,4]
[379228710,1755199840738,-150.0,0.00026822,4]
[379228711,1755199840748,-150.0,0.00026822,4]
[379228712,1755199840757,-11636.29713481,0.00026823,2]
[379228713,1755199840767,-1318.65639065,0.00026823,2]
[379228714,1755199840777,-150.45967905,0.00026825,2]
[379228715,1755199840786,-2014.66301223,0.00026826,2]
[379228716,1755199840796,-5265.23589699,0.00026826,2]
[379228717,1755199840807,-224.63016943,0.00026828,2]
[379228718,1755199840816,-8301.10231356,0.0002683,2]
[379228719,1755199840826,-27970.50109115,0.00026832,2]
[379228720,1755199840835,-338.72759032,0.00026835,2]
[379228721,1755199840845,-224.63016943,0.00026836,2]
[379228722,1755199840854,-280.13575422,0.00026838,2]
[379228723,1755199840863,-18620.80041592,0.00026839,2]
[379228724,1755199840874,-18620.80041592,0.00026841,2]
[379228725,1755199840883,-155.44216371,0.00026846,2]
[379228726,1755199840893,-338.72759032,0.00026848,2]
[379228727,1755199840903,-1908.36,0.00026849,14]
[379228728,1755199840912,-11636.29713481,0.0002685,2]
[379228729,1755199840922,-824.03289256,0.00026851,2]
[379228730,1755199840932,-70214.66229091,0.00026851,2]
[379228731,1755199840941,-1318.65639065,0.00026852,2]
[379228732,1755199840958,-153.03548462,0.00026853,2]
[379228733,1755199840978,-18620.80041592,0.00026854,2]
[379228734,1755199840991,-150.0,0.00026857,4]
[379228735,1755199841000,-150.45967905,0.00026857,2]
[379228736,1755199841010,-1318.65639065,0.00026857,2]
[379228737,1755199841019,-27970.50109115,0.00026858,2]
[379228738,1755199841029,-185.22,0.00026859,2]
[379228739,1755199841038,-8301.10231356,0.0002686,2]
[379228740,1755199841047,-27970.50109115,0.00026861,2]
[379228741,1755199841057,-2014.66301223,0.00026863,2]
[379228742,1755199841066,-338.72759032,0.00026864,2]
[379228743,1755199841076,-70214.66229091,0.00026872,2]
[379228744,1755199841086,-1488.07947113,0.00026876,2]
[379228745,1755199841096,-27970.50109115,0.00026878,2]
[379228746,1755199841106,-2500.0,0.0002688,2]
[379228747,1755199841115,-150.45967905,0.0002688,2]
[379228748,1755199841124,-2014.66301223,0.00026882,2]
[379228749,1755199841134,-338.72759032,0.00026895,2]
[379228750,1755199841143,-5265.23589699,0.00026899,2]
[379228751,1755199841153,-150.45967905,0.000269,2]
[379228752,1755199841162,-400.0,0.000269,2]
[379228753,1755199841171,-2390.59513739,0.000269,2]
[379228754,1755199841181,-2390.59513731,0.000269,2]
[379228755,1755199841190,-2390.59513731,0.000269,2]
[379228756,1755199841199,-2390.59513731,0.000269,2]
[379228757,1755199841208,-2390.59513731,0.000269,2]
[379228758,1755199841218,-2390.59513731,0.000269,2]
[379228759,1755199841227,-2390.59513731,0.000269,2]
[379228760,1755199841237,-2390.59513731,0.000269,2]
[379228761,1755199841247,-2390.59513731,0.000269,2]
[379228762,1755199841259,-2390.59513731,0.000269,2]
[379228763,1755199841269,-2014.66301223,0.00026904,2]
[379228764,1755199841279,-224.63016943,0.00026906,2]
[379228765,1755199841289,-824.03289256,0.00026906,2]
[379228766,1755199841299,-824.03289256,0.0002691,2]
[379228767,1755199841311,-70214.66229091,0.00026912,2]
[379228768,1755199841320,-1318.65639065,0.00026912,2]
[379228769,1755199841330,-8301.10231356,0.00026913,2]
[379228770,1755199841341,-150.0,0.00026914,4]
[379228771,1755199841351,-150.0,0.00026914,4]
[379228772,1755199841360,-150.45967905,0.00026918,2]
[379228773,1755199841369,-153.03548462,0.00026918,2]
[379228774,1755199841379,-1318.65639065,0.00026918,2]
[379228775,1755199841388,-2014.66301223,0.00026919,2]
[379228776,1755199841398,-11636.29713481,0.00026919,2]
[379228777,1755199841407,-280.13575422,0.0002692,2]
[379228778,1755199841417,-11636.29713481,0.00026923,2]
[379228779,1755199841426,-153.03548462,0.00026924,2]
[379228780,1755199841435,-280.13575422,0.00026925,2]
[379228781,1755199841724,-8301.10231356,0.00026937,2]
[379228782,1755199841767,-268.36,0.00026938,2]
[379228783,1755199841777,-150.0,0.00026942,4]
[379228784,1755199841788,-18620.80041592,0.00026943,2]
[379228785,1755199841798,-280.13575422,0.00026944,2]
[379228786,1755199841808,-338.72759032,0.00026947,2]
[379228787,1755199841819,-153.03548462,0.00026948,2]
[379228788,1755199841830,-27970.50109115,0.0002695,2]
[379228789,1755199841844,-8301.10231356,0.00026954,2]
[379228790,1755199841854,-155.44216371,0.00026954,2]
[379228791,1755199841865,-5265.23589699,0.00026955,2]
[379228792,1755199841874,-280.13575422,0.00026955,2]
[379228793,1755199841884,-338.72759032,0.00026955,2]
[379228794,1755199841893,-150.45967905,0.00026956,2]
[379228795,1755199841903,-8301.10231356,0.00026957,2]
[379228796,1755199841913,-1318.65639065,0.00026958,2]
[379228797,1755199841922,-2014.66301223,0.00026958,2]
[379228798,1755199841932,-8301.10231356,0.00026959,2]
[379228799,1755199841942,-224.63016943,0.0002696,2]
[379228800,1755199841951,-153.03548462,0.00026961,2]
[379228801,1755199841961,-18620.80041592,0.00026961,2]
[379228802,1755199841971,-280.13575422,0.00026961,2]
[379228803,1755199841992,-155.44216371,0.00026963,2]
[379228804,1755199842002,-2014.66301223,0.00026966,2]
[379228805,1755199842012,-5000.0,0.00026968,2]
[379228806,1755199842021,-18620.80041592,0.00026968,2]
[379228807,1755199842031,-153.03548462,0.00026969,2]
[379228808,1755199842040,-70214.66229091,0.00026975,2]
[379228809,1755199842050,-23885.59,0.00026977,14]
[379228810,1755199842061,-71049.24,0.00026977,14]
[379228811,1755199842070,-26200.67,0.00026977,14]
[379228812,1755199842079,-11954.93,0.00026977,14]
[379228813,1755199842089,-824.03289256,0.00026978,2]
[379228814,1755199842099,-824.03289256,0.00026978,2]
[379228815,1755199842108,-195.16,0.00026978,2]
[379228816,1755199842117,-150.0,0.00026979,4]
[379228817,1755199842126,-27970.50109115,0.0002698,2]
[379228818,1755199842136,-5265.23589699,0.0002698,2]
[379228819,1755199842147,-70214.66229091,0.00026981,2]
[379228820,1755199842157,-280.13575422,0.00026989,2]
[379228821,1755199842170,-209.74730017,0.0002699,2]
[379228822,1755199842180,-1071.0,0.0002699,2]
[379228823,1755199842191,-824.03289256,0.0002699,2]
[379228824,1755199842200,-11636.29713481,0.00026991,2]
[379228825,1755199842210,-5265.23589699,0.00026992,2]
[379228826,1755199842219,-224.63016943,0.00026992,2]
[379228827,1755199842228,-9962.395,0.00026994,15]
[379228828,1755199842240,-447.367,0.00026994,15]
[379228829,1755199842250,-155.44216371,0.00026994,2]
[379228830,1755199842264,-27970.50109115,0.00026995,2]
[379228831,1755199842275,-70214.66229091,0.00026996,2]
[379228832,1755199842285,-2000.0,0.00027,2]
[379228833,1755199842298,-2000.0,0.00027,2]
[379228834,1755199842310,-2000.0,0.00027,2]
[379228835,1755199842319,-700.0,0.00027,2]
[379228836,1755199842330,-597.09353439,0.00027,2]
[379228837,1755199842343,-225.0,0.00027,7]
[379228838,1755199842353,-1010.6022505,0.00027,2]
[379228839,1755199842364,-1000.0,0.00027,2]
[379228840,1755199842375,-3600.0,0.00027,30]
[379228841,1755199842386,-1000.0,0.0002701,2]
[379228842,1755199842397,-1000.0,0.00027015,2]
[379228844,1755199842407,-1000.0,0.00027019,2]
[379228846,1755199842417,-3856.72926,0.0002702,2]
[379228847,1755199842427,-3856.72926,0.0002702,2]
[379228848,1755199842438,-1000.0,0.00027024,2]
[379228849,1755199842448,-150.0,0.00027028,4]
[379228850,1755199842458,-1000.0,0.00027029,2]
[379228851,1755199842468,-292.47535917,0.0002703,2]
[379228852,1755199842478,-262.12898365,0.0002703,2]
[379228853,1755199842488,-1000.0,0.00027034,2]
[379228854,1755199842498,-1000.0,0.00027038,2]
[379228855,1755199842508,-724.07815596,0.0002704,2]
[379228857,1755199842517,-1000.0,0.00027043,2]
[379228859,1755199842527,-1000.0,0.00027048,2]
[379228860,1755199842536,-1000.0,0.00027052,2]
[379228861,1755199842546,-1074.40259451,0.00027057,10]
[379228862,1755199842555,-1000.0,0.00027057,2]
[379228863,1755199842565,-168.0,0.00027058,2]
[379228864,1755199842575,-1000.0,0.00027062,2]
[379228865,1755199842584,-150.0,0.00027066,4]
[379228866,1755199842594,-150.0,0.00027066,4]
[379228867,1755199842603,-150.0,0.00027066,4]
[379228868,1755199842613,-1000.0,0.00027067,2]
[379228869,1755199842622,-1075.20315016,0.00027067,10]
[379228870,1755199842631,-13741.9773303,0.00027068,2]
[379228871,1755199842641,-921.2798468,0.00027068,2]
[379228872,1755199842651,-431309.6416698,0.00027068,2]
[379228873,1755199842660,-30115.1100785,0.00027068,2]
[379228874,1755199842669,-197196.0051403,0.00027068,2]
[379228875,1755199842679,-36952.3661629,0.00027068,2]
[379228876,1755199842688,-96193.8413118,0.00027068,2]
[379228877,1755199842698,-24972.2339265,0.00027068,2]
[379228878,1755199842707,-1000.0,0.00027071,2]
[379228879,1755199842717,-1000.0,0.00027076,2]
[379228880,1755199842727,-1000.0,0.00027081,2]
[379228881,1755199842736,-1488.07947113,0.00027084,2]
[379228882,1755199842745,-1000.0,0.00027085,2]
[379228883,1755199842755,-1000.0,0.0002709,2]
[379228884,1755199842765,-1000.0,0.00027095,2]
[379228885,1755199842774,-150.0,0.00027096,4]
[379228886,1755199842783,-150.0,0.00027096,4]
[379228887,1755199842793,-1000.0,0.000271,2]
[379228888,1755199842803,-1000.0,0.000271,2]
[379228889,1755199842814,-6834.9,0.000271,2]
[379228890,1755199842823,-467.283715,0.000271,7]
[379228891,1755199842833,-467.283715,0.000271,7]
[379228892,1755199842842,-1000.0,0.00027104,2]
[379228893,1755199842852,-1000.0,0.00027109,2]
[379228894,1755199842862,-5888.0,0.00027111,2]
[379228895,1755199842872,-150.0,0.00027113,4]
[379228896,1755199842883,-1000.0,0.00027114,2]
[379228897,1755199842892,-1000.0,0.00027119,2]
[379228898,1755199842902,-4000.0,0.00027121,4]
[379228899,1755199842911,-600.0,0.00027122,2]
[379228900,1755199842920,-151.0,0.00027122,2]
[379228901,1755199842930,-1908.36,0.00027123,14]
[379228902,1755199842939,-168.0,0.00027135,2]
[379228903,1755199842949,-1136.10695672,0.0002716,2]
[379228904,1755199842958,-200.0,0.00027177,2]
[379228905,1755199842968,-200.0,0.00027177,2]
[379228906,1755199842977,-200.0,0.00027178,2]
[379228907,1755199842986,-200.0,0.00027178,2]
[379228908,1755199842996,-200.0,0.00027178,2]
[379228909,1755199843005,-301.02765107,0.00027195,2]
[379228910,1755199843015,-150.0,0.00027199,4]
[379228911,1755199843025,-1000.0,0.000272,2]
[379228912,1755199843034,-150.0,0.00027218,4]
[379228913,1755199843043,-167.51421022,0.00027219,2]
[379228914,1755199843052,-500.0,0.00027219,2]
[379228915,1755199843063,-151.0,0.00027234,7]
[379228916,1755199843073,-151.0,0.00027234,7]
[379228917,1755199843082,-151.0,0.00027234,7]
[379228918,1755199843092,-151.0,0.00027234,7]
[379228919,1755199843101,-151.0,0.00027234,7]
[379228920,1755199843111,-151.0,0.00027234,7]
[379228921,1755199843120,-565.0,0.00027244,2]
[379228922,1755199843129,-1296.0,0.00027244,2]
[379228923,1755199843139,-598.0,0.00027244,2]
[379228924,1755199843148,-1655.0,0.00027244,2]
[379228925,1755199843157,-1172.0,0.00027244,2]
[379228926,1755199843167,-893.0,0.00027244,2]
[379228927,1755199843176,-1254.0,0.00027244,2]
[379228928,1755199843185,-4149.0,0.00027244,2]
[379228929,1755199843194,-927.0,0.00027244,2]
[379228930,1755199843203,-1075.20315016,0.00027249,10]
[379228932,1755199843213,-1000.0,0.0002726,2]
[379228935,1755199843222,-1000.0,0.0002726,2]
[379228938,1755199843232,-1000.0,0.0002726,2]
[379228941,1755199843241,-1000.0,0.0002726,2]
[379228944,1755199843251,-1000.0,0.0002726,2]
[379228946,1755199843263,-1000.0,0.0002726,2]
[379228949,1755199843273,-1000.0,0.0002726,2]
[379228951,1755199843282,-1000.0,0.0002726,2]
[379228953,1755199843292,-1000.0,0.0002726,2]
[379228955,1755199843302,-1000.0,0.0002726,2]
[379228957,1755199843312,-1000.0,0.0002726,2]
[379228959,1755199843321,-1000.0,0.0002726,2]
[379228961,1755199843331,-1000.0,0.0002726,2]
[379228963,1755199843341,-1000.0,0.0002726,2]
[379228965,1755199843351,-1000.0,0.0002726,2]
[379228967,1755199843360,-1000.0,0.0002726,2]
[379228969,1755199843369,-1000.0,0.0002726,2]
[379228971,1755199843379,-1000.0,0.0002726,2]
[379228973,1755199843389,-1000.0,0.0002726,2]
[379228975,1755199843398,-1000.0,0.0002726,2]
[379228977,1755199843407,-1000.0,0.0002726,2]
[379228979,1755199843416,-1000.0,0.0002726,2]
[379228981,1755199843426,-1000.0,0.0002726,2]
[379228983,1755199843435,-1000.0,0.0002726,2]
[379228985,1755199843445,-1000.0,0.0002726,2]
[379228987,1755199843454,-540.8328,0.0002726,2]
[379228989,1755199843463,-5888.0,0.00027261,2]
[379228991,1755199843472,-3040.0,0.00027262,2]
[379228993,1755199843482,-151.0,0.00027266,2]
[379228995,1755199843491,-301.02765102,0.0002727,2]
[379228997,1755199843500,-10000.0,0.00027281,2]
[379228999,1755199843509,-150.0,0.00027284,4]
[379229001,1755199843518,-3427.45719773,0.00027287,2]
[379229003,1755199843527,-578.58940122,0.00027292,2]
[379229005,1755199843537,-1488.07947113,0.00027292,2]
[379229007,1755199843546,-9146.9230421,0.00027292,2]
[379229009,1755199843556,-497.34506608,0.00027293,2]
[379229011,1755199843566,-200.0,0.00027293,2]
[379229013,1755199843575,-3856.72925,0.00027293,2]
[379229015,1755199843584,-3856.72926,0.00027293,2]
[379229017,1755199843597,-3856.72926,0.00027293,2]
[379229019,1755199843607,-3856.72926,0.00027293,2]
[379229021,1755199843617,-151.0,0.00027293,3]
[379229023,1755199843627,-151.0,0.00027293,3]
[379229025,1755199843636,-165.93364377,0.00027293,3]
[379229028,1755199843646,-158.50799897,0.00027295,2]
[379229030,1755199843655,-5202.9137644,0.00027296,2]
[379229032,1755199843665,-1823.6119661,0.00027296,2]
[379229034,1755199843674,-4386.7867032,0.00027296,2]
[379229036,1755199843683,-5064.90584438,0.00027297,2]
[379229038,1755199843693,-2000.0,0.00027299,2]
[379229040,1755199843702,-165.7,0.000273,16]
[379229042,1755199843711,-200.0,0.000273,2]
[379229044,1755199843720,-5126.16,0.000273,2]
[379229046,1755199843730,-170.61855441,0.00027315,4]
[379229048,1755199843739,-158.50799897,0.0002733,2]
[379229050,1755199843748,-178.91,0.00027339,2]
[379229052,1755199843757,-170.61855441,0.00027342,4]
[379229054,1755199843767,-301.02765102,0.00027345,2]
[379229056,1755199843776,-178.91,0.00027358,2]
[379229058,1755199843786,-1532.646851,0.00027361,7]
[379229060,1755199843795,-1532.646851,0.00027361,7]
[379229062,1755199843806,-151.0,0.00027361,7]
[379229064,1755199843816,-151.0,0.00027361,7]
[379229066,1755199843826,-151.0,0.00027361,7]
[379229068,1755199843835,-920.252465,0.00027361,7]
[379229070,1755199843844,-920.252465,0.00027361,7]
[379229072,1755199843854,-158.50799897,0.00027365,2]
[379229074,1755199843863,-170.61855441,0.0002737,4]
[379229076,1755199843873,-248.92156468,0.0002737,4]
[379229078,1755199843882,-183.71594163,0.0002737,4]
[379229079,1755199843891,-161.58634364,0.0002737,4]
[379229080,1755199843900,-184.26180278,0.0002737,4]
[379229081,1755199843910,-150.0,0.0002737,4]
[379229082,1755199843919,-280.23617958,0.0002737,4]
[379229083,1755199843928,-160.53203478,0.0002737,4]
[379229084,1755199843937,-191.52365601,0.0002737,4]
[379229085,1755199843947,-266.67355584,0.0002737,4]
[379229086,1755199843956,-185.42467578,0.0002737,4]
[379229087,1755199843964,-150.0,0.0002737,4]
[379229088,1755199843974,-170.15123974,0.0002737,4]
[379229089,1755199843983,-243.21286951,0.0002737,4]
[379229090,1755199843992,-209.71228852,0.0002737,4]
[379229091,1755199844001,-1000.0,0.0002737,2]
[379229092,1755199844010,-1000.0,0.0002737,2]
[379229093,1755199844019,-500.0,0.00027373,2]
[379229094,1755199844029,-500.0,0.00027373,2]
[379229095,1755199844038,-500.0,0.00027373,2]
[379229097,1755199844047,-539.58967048,0.00027373,2]
[379229099,1755199844058,-500.0,0.00027373,2]
[379229101,1755199844067,-500.0,0.00027373,2]
[379229117,1755199844212,-500.0,0.00027373,2]
[379229119,1755199844222,-500.0,0.00027373,2]
[379229121,1755199844232,-500.0,0.00027373,2]
[379229124,1755199844242,-500.0,0.00027373,2]
[379229126,1755199844253,-500.0,0.00027373,2]
[379229127,1755199844266,-500.0,0.00027373,2]
[379229128,1755199844276,-500.0,0.00027373,2]
[379229129,1755199844285,-500.0,0.00027373,2]
[379229130,1755199844299,-169.06141551,0.00027373,2]
[379229131,1755199844312,-500.0,0.00027373,2]
[379229132,1755199844321,-500.0,0.00027373,2]
[379229133,1755199844336,-500.0,0.00027373,2]
[379229134,1755199844356,-500.0,0.00027373,2]
[379229135,1755199844376,-500.0,0.00027373,2]
[379229136,1755199844391,-500.0,0.00027373,2]
[379229137,1755199844400,-500.0,0.00027373,2]
[379229138,1755199844410,-500.0,0.00027373,2]
[379229139,1755199844419,-269.96187325,0.00027373,2]
[379229140,1755199844428,-366.25864031,0.00027373,2]
[379229141,1755199844438,-500.0,0.00027373,2]
[379229142,1755199844447,-308.64536307,0.00027373,2]
[379229143,1755199844455,-500.0,0.00027373,2]
[379229144,1755199844464,-500.0,0.00027373,2]
[379229145,1755199844473,-500.0,0.00027373,2]
[379229146,1755199844483,-500.0,0.00027373,2]
[379229147,1755199844492,-500.0,0.00027373,2]
[379229148,1755199844501,-500.0,0.00027373,2]
[379229149,1755199844510,-500.0,0.00027373,2]
[379229150,1755199844519,-500.0,0.00027373,2]
[379229151,1755199844528,-500.0,0.00027373,2]
[379229152,1755199844537,-162.08062459,0.00027373,2]
[379229153,1755199844547,-500.0,0.00027373,2]
[379229154,1755199844555,-370.73324084,0.00027373,2]
[379229155,1755199844565,-500.0,0.00027373,2]
[379229156,1755199844575,-502.24454179,0.00027373,2]
[379229157,1755199844583,-500.6619435,0.00027373,2]
[379229158,1755199844593,-515.13993855,0.00027373,2]
[379229159,1755199844602,-500.0,0.00027373,2]
[379229160,1755199844611,-500.0,0.00027373,2]
[379229161,1755199844620,-500.0,0.00027373,2]
[379229162,1755199844629,-2516.0,0.00027373,11]
[379229163,1755199844637,-178.91,0.00027376,2]
[379229164,1755199844646,-468.3,0.00027379,2]
[379229165,1755199844656,-2000.0,0.00027381,2]
[379229166,1755199844665,-324.88235,0.00027381,7]
[379229167,1755199844674,-324.88235,0.00027381,7]
[379229168,1755199844683,-685.71814027,0.00027386,2]
[379229169,1755199844692,-600.0,0.0002739,2]
[379229170,1755199844702,-600.0,0.0002739,2]
[379229171,1755199844710,-600.0,0.0002739,2]
[379229172,1755199844720,-600.0,0.0002739,2]